Workbook

Sheet Informática (hidden)
A1: MEMÓRIA DE CÁLCULO PARA ALUGUEL DE EQUIPAMENTOS DE INFORMÁTICA
B2: MÊS-BASE: | C2: 2014-11-01 | H2: Custo Equipamento R$ | I2: Vida Útil (Ano) | J2: Meses p/Ano de Uso | K2: Valor Percentual Residual | L2: Depreciação Mensal - R$
A4: Item | B4: Preço 1 Aluguel | C4: Preço 2 Aluguel | D4: Preço 3 Aluguel | E4: MÉDIA | H4: 2000 | I4: 4 | J4: =12 -> 12 | K4: 0.1 | L4: =(H4*(100%-K4))/(I4*J4) -> 37.5
A5: COMPUTADOR DESKTOP + SISTEMA OPERACIONAL + OFFICE | B5: 700 | E5: =AVERAGE(B5:D5) -> 700 | H5: 27300 | I5: 4 | J5: 12 | K5: 0.5 | L5: =(H5*(100%-K5))/(I5*J5) -> 284.38
A6: NOTEBOOK + SISTEMA OPERACIONAL + OFFICE | B6: 0 | E6: =AVERAGE(B6:D6) -> 0
A7: Impressora A4 (Multifuncional a laser) | C7: 280 | D7: 1200 | E7: =AVERAGE(B7:D7) -> 740
A8: Impressora A3 | C8: 820 | D8: 800 | E8: =AVERAGE(B8:D8) -> 810
A10: Item | B10: PREÇO DE AQUISIÇÃO 1 | C10: PREÇO DE AQUISIÇÃO 2 | D10: PREÇO DE AQUISIÇÃO 3 | E10: MÉDIA | F10: ALUGUEL MENSAL
A11: Aplicativo Gráfico / Web - Uma única Licença | B11: 0 | E11: =AVERAGE(B11:D11) -> 0 | F11: =ROUND(E11/48,2)+L4 -> 37.5
A12: Aplicativos de planejamento e gerenciamento (Auto CAD Ultimate e MS- PROJECT) - Uma única licença | B12: 0 | E12: =AVERAGE(B12:D12) -> 0 | F12: =ROUND(E12/48,2)+L5 -> 284.38
A14: ITENS NO ORÇAMENTO
A15: COMPUTADOR
A16: TIPO | B16: Quantidade | C16: Valor Médio
A18: COMPUTADOR (NOTEBOOK OU DESKTOP) + SISTEMA OPERACIONAL + OFFICE | B18: 1 | C18: =ROUND(AVERAGE(E5:E6),2) -> 350
A20: IMPRESSORAS
A21: TIPO | B21: Quantidade (a) | C21: Valor (b)
A23: Impressora A4 (Multifuncional a jato de tinta) | B23: 1 | C23: =E7 -> 740
A24: Impressora A3 | B24: 1 | C24: =E8 -> 810
A27: APLICATIVOS
A28: TIPO | B28: Quantidade | C28: Valor Médio
A30: Aplicativo Gráfico / Web - Uma única Licença | B30: 1 | C30: =+F11 -> 37.5
A31: Aplicativos de planejamento e gerenciamento (Auto CAD Ultimate e MS- PROJECT) - Uma única licença | B31: 1 | C31: =+F12 -> 284.38

Sheet Lista Equipamentos Previstos (hidden)
B61: Descrição | E61: Unid | F61: Qtd.
B62: F.1 - Veículos
C63: Sedan - 71 a 115 CV | E63: veic. | F63: 7
C64: Caminhonete Pick-Up - 140A 165 CV | E64: veic. | F64: 2
B65: F.2- Equipamentos
C66: Instrumental de Topografia | E66: equip. | F66: 5
C67: GPS | E67: equip. | F67: 5
B68: * | C68: Computador (Notebook ou Desktop e Software Operacional + Office) | E68: equip. | F68: 19
B69: * | C69: Impressora A4 | E69: equip. | F69: 5
B70: * | C70: Impressora A3 | E70: equip. | F70: 2
B71: * | C71: Aplicativo Orçamento (licenças) | E71: equip. | F71: 6
B72: * | C72: Aplicativo Gráfico / Web | E72: equip. | F72: 1
B73: * | C73: Aplicativo Gráfico para Desenho Técnico (Auto CAD Ultimate / Civil 3d) | E73: equip. | F73: 12
B74: * | C74: Aplicativos de planejamento e gerenciamento (MS-Project) | E74: equip. | F74: 10
B75: F.3- Instalações e Mobiliário
C76: Escritório | E76: unid. | F76: 5
C77: Alojamento p/ pessoal | E77: unid. | F77: 0
C78: Mobiliário p/ Escritório | E78: unid. | F78: 5
C79: Mobiliário de Alojamento p/ pessoal | E79: unid. | F79: 0
B80: F.4 - Serviços Gráficos
E81: unid. | F81: 1

Sheet PFS - Orçamento Base
A4: ANEXO III - ORÇAMENTO DE REFERENCIA SERVIÇOS DE APOIO À FISCALIZAÇÃO E SUPERVISÃO -SISTEMAS ADUTORES, NA REGIÃO DO SERIDÓ POTIGUAR, CORRESPONDENTES AOS TRECHOS 1N, 2N, 4N e 5N.
A6: PROPOSTA FINANCEIRA DE SERVIÇOS Orçamento de referência - NÃO DESONERADO | H6: CODIGO:
H7: PFS-A
A8: ='PFS- I- Orçam Base'!C8 -> CONTRATAÇÃO DE EMPRESA PARA A PRESTAÇÃO DOS SERVIÇOS DE ENGENHARIA DE APOIO À FISCALIZAÇÃO E SUPERVISÃO DE OBRAS DE IMPLANTAÇÃO DE SISTEMAS ADUTORES, NA REGIÃO DO SERIDÓ POTIGUAR, CORRESPONDENTES AOS TRECHOS 1N, 2N, 4N e 5N. | H8: DATA BASE: JULHO/2022 (DNIT) JANEIRO/2023 (SINAPI/RN)
A10: DISCRIMINAÇÃO | F10: VALOR (R$)
F11: PARCIAL (R$) | H11: TOTAL (R$)
A12: A - EQUIPE TÉCNICA | H12: =SUM(F13:G14) -> 0
A13: A.1 - Pessoal de Nível Superior | F13: ='PFS- I- Orçam Base'!L13 -> 0
A14: A.2 - Pessoal de Nível Técnico | F14: ='PFS- I- Orçam Base'!L17 -> 0
A15: B - ENCARGOS SOCIAIS | H15: =F16 -> 0
A16: Taxas | D16: ='PFS_VII Det_ Enc_ Soc_'!H50*100 -> 70.53 | E16: % do item "A" | F16: =TRUNC(H12*D16%,2) -> 0
A17: C - CUSTOS ADMINISTRATIVOS | H17: =SUM(F18) -> 0
A18: Taxas | D18: ='PFS_V_Det. Custos Adm'!F36*100 -> 15 | E18: % do item "A" | F18: =TRUNC(H12*D18%,2) -> 0
A19: D - DESPESAS GERAIS | H19: =SUM(F20:G23) -> 0
A20: D.1 - VEÍCULOS | F20: ='PFS- I- Orçam Base'!L31 -> 0
A21: D.2 - EQUIPAMENTOS | F21: ='PFS- I- Orçam Base'!L34 -> 0
A22: D.3 - ESCRITÓRIO | F22: ='PFS- I- Orçam Base'!L37 -> 0
A23: D.4 - ALIMENTAÇÃO | F23: ='PFS- I- Orçam Base'!L41 -> 0
A24: I - CUSTOS DIRETOS (A+B+C+D) | H24: =SUM(H12,H15,H17,H19) -> 0
A25: II - REMUNERAÇÃO DA EMPRESA | H25: =SUM(F26) -> 0
A26: Taxas | D26: 8 | E26: % do item "I" | F26: =TRUNC(H24*D26%,2) -> 0
A27: III - DESPESAS FISCAIS | H27: =SUM(F28) -> 0
A28: Taxas | D28: ='PFS_VI Despesas Fiscais'!G40 -> 14.16 | E28: % do item "I+II" | F28: =SUM(H24:I25)*D28% -> 0
A29: TOTAL DO ORÇAMENTO I+II+III | H29: =SUM(H24,H25,H27) -> 0
A30: PRAZO = 36 meses
I33: 10156192.82

Sheet Resumo Orç (BRANCO) (hidden)
A1: RESUMO DE ORÇAMENTO REFERENCIAL SERVIÇOS DE CONSULTORIA
A2: CONTRATAÇÃO DE EMPRESA ESPECIALIZADA PARA PRESTAÇÃO DOS SERVIÇOS DE SUPERVISÃO DA ELABORAÇÃO DOS PROJETOS BÁSICO E EXECUTIVO E DA EXECUÇÃO DAS OBRAS DE DUAS PONTES NA BR-425/RO (RIO ARARAS E RIO RIBEIRÃO) Rodovia: BR - 425/RO Trecho: Entr. BR-364(B) – Fronteira Brasil/Bolívia (Guajará Mirim/RO) Subtrecho: Entr. BR-364(B) – Fronteira Brasil/Bolívia (Guajará Mirim/RO Segmento: km 51,70 - Ponte sobre o Rio Araras km 79,70 - Ponte sobre o Rio Ribeirão Extensão: 105,00 m - Ponte sobre o Rio Araras 110,00 m - Ponte sobre o Rio Ribeirão | H2: DATA BASE: JULHO/2020
A5: DISCRIMINAÇÃO | F5: VALOR (R$)
F6: PARCIAL (R$) | H6: TOTAL (R$)
A7: A - EQUIPE TÉCNICA | H7: =SUM(F8:G10) -> 0
C8: A.1 - Pessoal de Nível Superior | F8: 0
C9: A.2 - Pessoal de Nível Técnico | F9: 0
C10: A.3 - Pessoal Nível Auxiliar | F10: 0
A11: B - CONSULTORIA ESPECIAL | F11: 0 | H11: =SUM(F11) -> 0
A12: C - ENCARGOS SOCIAIS | H12: =F13 -> 0
C13: Taxas | D13: 84.04 | E13: % do item "A" | F13: =H7*D13% -> 0
A14: D- ENCARGOS SOCIAIS - CONSULTOR ESPECIAL - PJ | H14: =SUM(F15) -> 0
C15: Taxas | D15: 20 | E15: % do item "B" | F15: =H11*D15% -> 0
A16: E - CUSTOS ADMINISTRATIVOS | H16: =SUM(F17) -> 0
C17: Taxas | D17: 30 | E17: % do item "A" | F17: =TRUNC(H7*D17%,2) -> 0
A18: F - DESPESAS GERAIS | H18: =SUM(F19:G23) -> 0
A19: F.1 - VEÍCULOS | F19: 0
A20: F.2 - EQUIPAMENTOS | F20: 0
A21: F.3 - IMOVÉIS | F21: 0
A22: F.4 - MOBILIÁRIO | F22: 0
A23: F.5 - ENSAIOS ESPECIAIS | F23: 0
A24: I - CUSTOS DIRETOS (A+B+C+D+E+F) | H24: =TRUNC(SUM(H7,H11,H12,H14,H16,H18),2) -> 0
A25: II - REMUNERAÇÃO DA EMPRESA | H25: =SUM(F26) -> 0
C26: Taxas | D26: 12 | E26: % do item "I" | F26: =(H24*D26%) -> 0
A27: III - DESPESAS FISCAIS | H27: =SUM(F28) -> 0
C28: Taxas | D28: 16.62 | E28: % do item "I+II" | F28: =SUM(H24:I25)*D28% -> 0
A29: TOTAL DO ORÇAMENTO I+II+III | H29: =SUM(H24,H25,H27) -> 0
A30: PRAZO = 720 .d.c

Sheet PFS- I- Orçam Base
N2: 36
C6: PROPOSTA FINANCEIRA DE SERVIÇOS Orçamento de referência - NÃO DESONERADO | L6: CODIGO:
L7: PFS-I
C8: CONTRATAÇÃO DE EMPRESA PARA A PRESTAÇÃO DOS SERVIÇOS DE ENGENHARIA DE APOIO À FISCALIZAÇÃO E SUPERVISÃO DE OBRAS DE IMPLANTAÇÃO DE SISTEMAS ADUTORES, NA REGIÃO DO SERIDÓ POTIGUAR, CORRESPONDENTES AOS TRECHOS 1N, 2N, 4N e 5N. | L8: DATA BASE: JULHO/2022 (DNIT) JANEIRO/2023 (SINAPI/RN)
C10: Descrição | E10: Código | F10: Unid | G10: Qtd. | H10: Participação Mensal Média | I10: Prazo (meses) | J10: Qtde Total Mês | K10: Preço Unitário (R$/Mês) | L10: Preço Total (R$)
C11: Pessoal | E11: Nível Funcional | G11: a | H11: b | I11: c | J11: d=a*b*c | K11: e | L11: f=d*e
G12: SUBTOTAL A = (A1+A2) | L12: =L13+L17 -> 0
B13: Código | C13: A.1 - NÍVEL SUPERIOR | L13: =SUM(L14:L16) -> 0
B14: DNIT/P8066 | C14: Engenheiro - Profissional Pleno | E14: P2 | F14: mês | G14: 1 | H14: 1 | I14: =$N$2 -> 36 | J14: =G14*H14*I14 -> 36 | L14: =TRUNC(J14*K14,2) -> 0
B15: DNIT/P8065 | C15: Engenheiro - Profissional Júnior | E15: P3 | F15: mês | G15: 2 | H15: 1 | I15: =$N$2 -> 36 | J15: =G15*H15*I15 -> 72 | L15: =TRUNC(J15*K15,2) -> 0
B16: DNIT/P8080 | C16: Geólogo - Profissional Júnior | E16: P3 | F16: mês | G16: 1 | H16: 1 | I16: =$N$2 -> 36 | J16: =G16*H16*I16 -> 36 | L16: =TRUNC(J16*K16,2) -> 0
C17: A.2 - NÍVEL TÉCNICO | L17: =SUM(L18:L27) -> 0
B18: DNIT/P8026 | C18: Auxiliar de Escritório | E18: A2 | F18: mês | G18: 1 | H18: 1 | I18: =$N$2 -> 36 | J18: =G18*H18*I18 -> 36 | L18: =TRUNC(J18*K18,2) -> 0
B19: DNIT/P8147 | C19: ='[35]Tconsul Codevasf'!C15 -> Técnico - Profissional Especial | E19: T0 | F19: mês | G19: 1 | H19: 1 | I19: 36 | J19: 36 | L19: 0
B20: DNIT/P8143 | C20: Técnico Auxiliar (Campo) | E20: T3 | F20: mês | G20: 3 | H20: 1 | I20: 36 | J20: 108 | L20: 0
B21: DNIT/P8163 | C21: Topógrafo | E21: T2 | F21: mês | G21: 1 | H21: 1 | I21: 36 | J21: 36 | L21: 0
B22: SINAPI/40946 | C22: Técnico de Edificações | E22: T2 | F22: mês | G22: 2 | H22: 1 | I22: 36 | J22: 72 | L22: 0
C23: Eletrotécnico | E23: T2 | F23: mês | H23: 1 | I23: 36 | J23: 0 | K23: =4673.69/1.469 -> 3181.55 | L23: 0
C24: Técnico Mecânico | E24: T2 | F24: mês | H24: 1 | I24: 36 | J24: 0 | K24: =4673.69/1.469 -> 3181.55 | L24: 0
B25: DNIT/P8028 | C25: Servente Contínuo (Auxiliar de Topografia) | E25: T4 | F25: mês | G25: 1 | H25: 1 | I25: 36 | J25: 36 | L25: 0
B26: DNIT/P8098 | C26: Técnico Auxiliar (Laboratorista) | E26: T3 | F26: mês | G26: 1 | H26: 1 | I26: 36 | J26: 36 | L26: 0
B27: DNIT/P8027 | C27: Servente Contínuo (Auxiliar de Laboratório) | E27: T4 | F27: mês | G27: 1 | H27: 1 | I27: 36 | J27: 36 | L27: 0
C28: B - Encargos Sociais (_% de A) | E28: ='PFS_VII Det_ Enc_ Soc_'!H50 -> 0.7053 | G28: Subtotal B | L28: =TRUNC(L12*$E$28,2) -> 0
C29: C - Custos Administrativos (_% de A) | E29: ='PFS_V_Det. Custos Adm'!F36 -> 0.15 | G29: Subtotal C | L29: =TRUNC(L12*E29,2) -> 0
C30: D - Despesas Gerais
C31: D.1 - Veículos | L31: =SUM(L32:L33) -> 0
B32: CPU | C32: PICK-UP - CD 4X4 Diesel | F32: veic. | G32: 4 | H32: 1 | I32: =$N$2 -> 36 | J32: =G32*H32*I32 -> 144 | L32: =TRUNC(J32*K32,2) -> 0
B33: CPU | C33: Veículo leve - 71 a 115 CV | F33: veic. | G33: 4 | H33: 1 | I33: =$N$2 -> 36 | J33: =G33*H33*I33 -> 144 | L33: =TRUNC(J33*K33,2) -> 0
C34: D.2 - Equipamentos | L34: =SUM(L35:L36) -> 0
B35: CPU | C35: Instrumental de Topografia, Solos e Concreto | F35: equip. | G35: =G21 -> 1 | H35: 1 | I35: =$N$2 -> 36 | J35: =G35*H35*I35 -> 36 | L35: =TRUNC(J35*K35,2) -> 0
B36: Cotação | C36: Equipamento de topografia - drone para mapeamento | F36: equip. | G36: 1 | H36: 1 | I36: 1 | J36: =G36*H36*I36 -> 1 | L36: =TRUNC(J36*K36,2) -> 0
C37: D.3 - Escritorio | L37: =SUM(L38:L40) -> 0
B38: DNIT/B8952 | C38: Aluguel de Escritório (Mínimo de 200 m²) | F38: unid. | G38: 1 | H38: 1 | I38: =$N$2 -> 36 | J38: =G38*H38*I38 -> 36 | L38: =TRUNC(J38*K38,2) -> 0
B39: DNIT/B8953 | C39: Cesta de Mobiliário de Escritório | F39: unid. | G39: 1 | H39: 1 | I39: 36 | J39: 36 | L39: 0
B40: DNIT/B8959 | C40: Custos Diversos de Escritório | F40: unid. | G40: 1 | H40: 1 | I40: 36 | J40: =G40*H40*I40 -> 36 | L40: 0
C41: D.4 -Alimentação | L41: =SUM(L42) -> 0
C42: Alimentação (almoço) (Total funcionários = 15 ) | F42: mês | G42: 1 | H42: 1 | I42: =$N$2 -> 36 | J42: =G42*H42*I42 -> 36 | L42: =TRUNC(J42*K42,2) -> 0
G43: Subtotal D | L43: =SUM(L31,L34,L37,L41) -> 0
C44: TOTAL DO ITEM I - CUSTOS DIRETOS | G44: ( A + B + C+ D ) | L44: =SUM(L12,L28,L29,L43) -> 0
C46: II - CUSTOS INDIRETOS
C47: II.1 - Remuneração da Empresa (_% de I) | E47: ='PFS - Orçamento Base'!D26/100 -> 0.08 | G47: Subtotal II.1 | L47: =TRUNC(L44*E47,2) -> 0
C48: II.2 - Despesas Fiscais [(_% de I + II.1)] | E48: ='PFS_VI Despesas Fiscais'!G40/100 -> 0.1416 | G48: Subtotal II.2 | L48: =SUM(L44,L47)*E48 -> 0
C49: TOTAL DO ITEM II - CUSTOS INDIRETOS | E49: ( II.1 + II.2 ) | L49: =SUM(L47:L48) -> 0
C51: TOTAL GERAL ( I + II ) | L51: =SUM(L44,L49) -> 0
C52: Limites Máximos Admissíveis: B = 70,53% D= 15,00% E= 30,34% II.1 = 8,00% II.2 = 20,34% Tempo Estimado de Realização dos Serviços 36 meses | J52: CUSTO ESTIMADO MENSAL | L52: =L51/N2 -> 0
N56: Valor estimado do orçamento para obra | Q56: 327423283.6
N57: Valor estimado - Supervisão (36 meses) | Q57: =L51 -> 0
N58: % Supervisão / Obra | Q58: =Q57/Q56 -> 0

Sheet orçam (BRANCO) (hidden)
C5: DEPARTAMENTO NACIONAL DE INFRAESTRUTURA DE TRANSPORTES
C7: CONTRATAÇÃO DE EMPRESA ESPECIALIZADA PARA PRESTAÇÃO DOS SERVIÇOS DE SUPERVISÃO DA ELABORAÇÃO DOS PROJETOS BÁSICO E EXECUTIVO E DA EXECUÇÃO DAS OBRAS DE DUAS PONTES NA BR-425/RO (RIO ARARAS E RIO RIBEIRÃO). ESTADO: RONDÔNIA LOTE: ÚNICO Prazo: 720 d.c
A9: ANEXO II | C9: ANEXO I
C10: ORÇAMENTO REFERENCIAL
L11: DATA BASE: jul/2020
C13: Descrição | E13: Código | F13: Unid | G13: Qtd. | H13: Participação Mensal Média | I13: Prazo (meses) | J13: Qtde Total Mês | K13: Preço Unitário (R$/Mês) | L13: Preço Total (R$)
C14: Pessoal | E14: Nível Funcional | G14: a | H14: b | I14: c | J14: d=a*b*c | K14: e | L14: f=d*e
G15: SUBTOTAL A = (A1+A2+A3) | L15: 0
C16: A.1 - NÍVEL SUPERIOR | L16: =SUM(L17:L19) -> 0
C17: Engenheiro Sênior/Obras de Arte Especiais | E17: P0 | F17: mês | G17: 1 | H17: 1 | I17: 24 | J17: =G17*H17*I17 -> 24
C18: Engenheiro Ambiental | E18: P4 | F18: mês | G18: 1 | H18: 1 | I18: 24 | J18: 24
C19: Arqueólogo | E19: P4 | F19: mês | G19: 1 | H19: 1 | I19: 24 | J19: 24
C20: A.2 - NÍVEL TÉCNICO | L20: =SUM(L21:L25) -> 0
C21: Técnico Pleno (Auxiliar de Engenheiro / Inspetor de Campo) - Assessoria na Análise de Projetos e acompanhamento de obras | E21: T2 | F21: mês | G21: 1 | H21: 1 | I21: 24 | J21: =G21*H21*I21 -> 24
C22: Técnico Pleno (Topógrafo) | E22: T2 | F22: mês | G22: 1 | H22: 1 | I22: 24 | J22: =G22*H22*I22 -> 24
C23: Técnico Auxiliar (Auxiliar de Topografia) | E23: T4 | F23: mês | G23: 1 | H23: 1 | I23: 24 | J23: =G23*H23*I23 -> 24
C24: Técnico Pleno (Laboratorista) | E24: T2 | F24: mês | G24: 1 | H24: 1 | I24: 24 | J24: =G24*H24*I24 -> 24
C25: Técnico Auxiliar (Auxiliar de Laboratório) | E25: T4 | F25: mês | G25: 2 | H25: 1 | I25: 24 | J25: =G25*H25*I25 -> 48
C26: A.3 - NÍVEL AUXILIAR | L26: =SUM(L27:L29) -> 0
C27: Secretária | E27: A1 | F27: mês | G27: 1 | H27: 1 | I27: 24 | J27: =G27*H27*I27 -> 24
C28: Auxiliar de Escritório (Operador de Microcomputador) | E28: A2 | F28: mês | G28: 0 | H28: 1 | I28: 24 | J28: =G28*H28*I28 -> 0
C29: Motorista | E29: A2 | F29: mês | H29: 1 | I29: 24 | J29: =G29*H29*I29 -> 0
C30: B - CONSULTORIA ESPECIAL | L30: =SUM(L31:L31) -> 0
C31: Consultor Especial | E31: CM | F31: mês | G31: 0 | H31: 0.15 | I31: 24 | J31: =G31*H31*I31 -> 0
C32: C - Encargos Sociais (_% de A) | E32: 0.8404 | G32: Subtotal C | L32: =TRUNC(L15*$E$32,2) -> 0
C33: D - E. Sociais - Consultor Especial - PJ (_% de B) | E33: 0.2 | G33: Subtotal D | L33: =TRUNC(L30*E33,2) -> 0
C34: E - Custos Administrativos (_% de A) | E34: 0.3 | G34: Subtotal E | L34: =TRUNC(L15*E34,2) -> 0
C35: F- Despesas Gerais
C36: F.1 - Veículos | L36: =SUM(L37:L39) -> 0
C37: Sedan - 71 a 115 CV | F37: veic. | G37: 2 | H37: 1 | I37: 24 | J37: =G37*H37*I37 -> 48
C38: Caminhonete - 71 a 115cv | F38: veic. | G38: 1 | H38: 1 | I38: 24 | J38: =G38*H38*I38 -> 24
C39: Caminhão para Viga Benkelman | F39: veic. | G39: 1 | H39: 1 | I39: 1 | J39: =G39*H39*I39 -> 1
C40: F.2- Equipamentos | L40: =SUM(L41:L45) -> 0
C41: Instrumental de Topografia | F41: equip. | G41: 1 | H41: 1 | I41: 24 | J41: =G41*H41*I41 -> 24
C42: Laboratório de Concreto | F42: equip. | G42: 1 | H42: 1 | I42: 20 | J42: =G42*H42*I42 -> 20
C43: Laboratório de Solos | F43: equip. | G43: 1 | H43: 1 | I43: 2 | J43: =G43*H43*I43 -> 2
C44: Laboratório de Betume | F44: equip. | G44: 1 | H44: 1 | I44: 1 | J44: =G44*H44*I44 -> 1
C45: Viga Benkelman | F45: equip. | G45: 1 | H45: 1 | I45: 1 | J45: =G45*H45*I45 -> 1
C46: F.3- Imóveis | L46: =SUM(L47:L49) -> 0
C47: Escritório | F47: unid. | G47: 1 | H47: 1 | I47: 24 | J47: =G47*H47*I47 -> 24
C48: Casa para Engenheiro | F48: unid. | G48: 1 | H48: 1 | I48: 24 | J48: =G48*H48*I48 -> 24
C49: Alojamento para Pessoal | F49: unid. | G49: 1 | H49: 1 | I49: 24 | J49: =G49*H49*I49 -> 24
C50: F.4- Mobiliário | L50: =SUM(L51:L52) -> 0
C51: Mobiliário de Escritório | F51: unid. | G51: 1 | H51: 1 | I51: 24 | J51: =G51*H51*I51 -> 24
C52: Mobiliário de Alojamento p/ Pessoal | F52: unid. | G52: 1 | H52: 1 | I52: 24 | J52: =G52*H52*I52 -> 24
C53: F.5 - Ensaios Especiais | L53: =SUM(L54) -> 0
C54: Ensaios Especiais | F54: UD | G54: 0 | H54: 1 | I54: 1 | J54: =G54*H54*I54 -> 0 | K54: =TRUNC(L15*1%,2) -> 0 | L54: =TRUNC(J54*K54,2) -> 0
G55: Subtotal F | L55: =SUM(L36,L40,L46,L50,L53) -> 0
C56: TOTAL DO ITEM I - CUSTOS DIRETOS | G56: ( A + B + C+ D + E + F ) | L56: =SUM(L15,L30,L32,L33,L34,L55) -> 0
C58: II - CUSTOS INDIRETOS
C59: II.1 - Remuneração da Empresa (_% de I) | E59: 0.12 | G59: Subtotal II.1 | L59: =TRUNC(L56*E59,2) -> 0
C60: II.2 - Despesas Fiscais [(_% de I + II.1)] | E60: 0.1662 | G60: Subtotal II.2 | L60: =SUM(L56,L59)*E60 -> 0
C61: TOTAL DO ITEM II - CUSTOS INDIRETOS | E61: ( II.1 + II.2 ) | L61: =SUM(L59:L60) -> 0
C63: TOTAL GERAL ( I + II ) | L63: =SUM(L56,L61) -> 0
C64: Limites Máximos Admissíveis: C = 84,04% D= 20,00% E= 30,00% II.1 = 12,00% II.2 = 16,62% Tempo Estimado de Realização dos Serviços 720.d.c | J64: CUSTO ESTIMADO MENSAL | L64: =L63/J17 -> 0
D71: VALORES REFERENCIAIS:
D72: Tabela de Consultoria do DNIT, instituída por meio da Instrução de Serviço DG nº 03/2012.
D73: Percentuais de encargos sociais e custos administrativos, em conformidade com recomendação constante do Ofício nº 535/2011-TCU/SECOB-1
D74: Os valores referenciais para veículos envolvem aluguel e combustível.
C78: CARGO | E78: NIVEL FUNCIONAL | G78: QUALIFICAÇÃO EXIGIDA | K78: FUNÇÃO CONTEMPLADA
D79: CONSULTOR ESPECIAL | E79: CM | G79: Engenheiro ou Profissional com, no mínimo, Doutorado na área de interesse, e/ou Experiência Profissional >= 15 anos | K79: Especialista em Engenharia (Todas) Especialista em Arquitetura Especialista na Área Social Especialista na Área Ambiental Especialista na Área Financeira Especialista na Área Administrativa Especialista na Área Contábil Especialista na Área Economia
D80: COORDENADOR | E80: P0 | G80: Engenheiro ou Profissional - Experiência Profissional >= 10 anos | K80: Coordenador Geral Coordenador de Gerenciamento. Coordenador de Fiscalização Coordenador de Planejamento Administrador de Contratos Coordenador de Apoio Assistencial
D81: ENGENHEIRO/PROFISSIONAL SÊNIOR | E81: P1 | G81: Experiência Profissional >= 8 anos | K81: Profissional em : Engenharia (todas) Arquitetura e Urbanismo Profissional ärea Social (serviço social, ciências sociais, Sociólogo, etc) Profissional Área Ambiental Contador Administrador Economista Área de Comunicação Social (Jornalista, Assessor de Comunicação, etc.) Profissionais ärea de T.I (Programador, Analista de Sistema) Geologia Biologia Área Jurídica (Advogado, Assessor jurídico, etc) Topografia
D82: ENGENHEIRO/PROFISSIONAL PLENO | E82: P2 | G82: Experiência Profissional >= 5 anos
D83: ENGENHEIRO/PROFISSIONAL JÚNIOR | E83: P3 | G83: Experiência Profissional >= 2 anos
D84: ENGENHEIRO/PROFISSIONAL AUXILIAR | E84: P4 | G84: Formação 3º Grau
D85: TÉCNICO SÊNIOR | E85: T2 | G85: 2º Grau Completo - Experiência Profissional >= 10 anos | K85: Auxiliar de Engenharia Inspetor de Campo Fiscal de Campo Técnico em Edificações Técnico em estradas Técnico em Segurança do Trabalho Técnico em Contabilidade Técnico em Medicina do Trabalho Laboratorista (Chefe, Auxiliar) Topógrafo (Chefe, Auxiliar) Telefonista Escriturário Auxiliares (Escritório, Administrativo, etc)
D86: TÉCNICO SÊNIOR | E86: T1 | G86: 2º Grau Completo - Experiência Profissional >= 8 anos
D87: TÉCNICO PLENO | E87: T2 | G87: 2º Grau Completo - Experiência Profissional >= 5 anos
D88: TÉCNICO JÚNIOR | E88: T3 | G88: 2º Grau Completo - Experiência Profissional >= 2 anos
D89: TÉCNICO AUXILIAR | E89: T4 | G89: Formação - 2º Grau Completo
D90: TÉCNICO | E90: T5 | G90: Formação Técnica e/ou Experiência Profissional | K90: Calculista Desenhista / Cadista Operador de Computador
D91: CHEFE DE ESCRITÓRIO | E91: A0 | G91: 2º Grau Completo - Experiência Profissional >= 5 anos | K91: Chefe de Escritório Secretária Executiva
D92: SECRETÁRIA (O) | E92: A1 | G92: Experiência Profissional | K92: Secretária
D93: DATILÓGRAFO/MOTORISTA | E93: A2 | G93: Experiência Profissional | K93: motorista
D94: SERVENTES / CONTÍNUOS | E94: A3 | G94: Experiência Profissional | K94: Aux. De Serviços Gerais Copeiro Zelador
D95: VIGIAS | E95: A4 | G95: Experiência Profissional | K95: Vigias

Sheet PFS_II Equipe
A4: SALÁRIOS E ENCARGOS DA EQUIPE | J4: CODIGO:
J5: PFS-II | M5: =1000000 -> 1000000
A8: =[36]PFS!A8 -> NOME DA CONSULTORA: | E8: OBJETO: | J8: EDITAL:
A10: CATEGORIA FUNCIONAL | B10: CATEGORIA | C10: TOTAL DE | D10: TOTAL DE | E10: SALÁRIO | F10: TOTAL CUSTO | G10: TOTAL CUSTO | H10: TOTAL CUSTO | I10: TOTAL CUSTO | J10: TAXA DE | M10: =32957.95/0.15 -> 219719.6667
C11: HOMENS | D11: MESES | E11: MENSAL (R$) | F11: SALÁRIOS DE | G11: SALÁRIOS | H11: E. SOCIAIS DE | I11: E. SOCIAIS DE | J11: ENCARGOS SOCIAIS
F12: MENSAL | G12: CONTRATO | H12: CONTRATO | I12: CONTRATO | J12: %
A13: ='PFS- I- Orçam Base'!C14 -> Engenheiro - Profissional Pleno | B13: ='PFS- I- Orçam Base'!E14 -> P2 | C13: ='PFS- I- Orçam Base'!G14 -> 1 | D13: ='PFS- I- Orçam Base'!$N$2 -> 36 | E13: ='PFS- I- Orçam Base'!K14 -> 0 | F13: =ROUND(E13*C13,2) -> 0 | G13: =D13*F13 -> 0 | H13: =ROUND((F13*J13),2) -> 0 | I13: =G13*J13 -> 0 | J13: ='PFS- I- Orçam Base'!$E$28 -> 0.7053
A14: ='PFS- I- Orçam Base'!C15 -> Engenheiro - Profissional Júnior | B14: ='PFS- I- Orçam Base'!E15 -> P3 | C14: ='PFS- I- Orçam Base'!G15 -> 2 | D14: ='PFS- I- Orçam Base'!$N$2 -> 36 | E14: ='PFS- I- Orçam Base'!K15 -> 0 | F14: =ROUND(E14*C14,2) -> 0 | G14: =D14*F14 -> 0 | H14: =ROUND((F14*J14),2) -> 0 | I14: =G14*J14 -> 0 | J14: ='PFS- I- Orçam Base'!$E$28 -> 0.7053 | M14: =62352034/630000 -> 98.97148254
A15: ='PFS- I- Orçam Base'!C16 -> Geólogo - Profissional Júnior | B15: ='PFS- I- Orçam Base'!E16 -> P3 | C15: ='PFS- I- Orçam Base'!G16 -> 1 | D15: ='PFS- I- Orçam Base'!$N$2 -> 36 | E15: ='PFS- I- Orçam Base'!K16 -> 0 | F15: =ROUND(E15*C15,2) -> 0 | G15: =D15*F15 -> 0 | H15: =ROUND((F15*J15),2) -> 0 | I15: =G15*J15 -> 0 | J15: ='PFS- I- Orçam Base'!$E$28 -> 0.7053
A16: Auxiliar de Escritório | B16: A2 | C16: ='PFS- I- Orçam Base'!G18 -> 1 | D16: ='PFS- I- Orçam Base'!$N$2 -> 36 | E16: ='PFS- I- Orçam Base'!K18 -> 0 | F16: =ROUND(E16*C16,2) -> 0 | G16: 0 | H16: 0 | I16: =G16*J16 -> 0 | J16: ='PFS- I- Orçam Base'!$E$28 -> 0.7053
A17: ='PFS- I- Orçam Base'!C19 -> Técnico - Profissional Especial | B17: ='PFS- I- Orçam Base'!E19 -> T0 | C17: ='PFS- I- Orçam Base'!G19 -> 1 | D17: ='PFS- I- Orçam Base'!$N$2 -> 36 | E17: ='PFS- I- Orçam Base'!K19 -> 0 | F17: =ROUND(E17*C17,2) -> 0 | G17: 0 | H17: 0 | I17: =G17*J17 -> 0 | J17: ='PFS- I- Orçam Base'!$E$28 -> 0.7053
A18: ='PFS- I- Orçam Base'!C20 -> Técnico Auxiliar (Campo) | B18: ='PFS- I- Orçam Base'!E20 -> T3 | C18: ='PFS- I- Orçam Base'!G20 -> 3 | D18: ='PFS- I- Orçam Base'!$N$2 -> 36 | E18: ='PFS- I- Orçam Base'!K20 -> 0 | F18: =ROUND(E18*C18,2) -> 0 | G18: 0 | H18: 0 | I18: =G18*J18 -> 0 | J18: ='PFS- I- Orçam Base'!$E$28 -> 0.7053
A19: ='PFS- I- Orçam Base'!C21 -> Topógrafo | B19: ='PFS- I- Orçam Base'!E21 -> T2 | C19: ='PFS- I- Orçam Base'!G21 -> 1 | D19: ='PFS- I- Orçam Base'!$N$2 -> 36 | E19: ='PFS- I- Orçam Base'!K21 -> 0 | F19: 0 | G19: 0 | H19: 0 | I19: 0 | J19: ='PFS- I- Orçam Base'!$E$28 -> 0.7053
A20: ='PFS- I- Orçam Base'!C22 -> Técnico de Edificações | B20: ='PFS- I- Orçam Base'!E22 -> T2 | C20: ='PFS- I- Orçam Base'!G22 -> 2 | D20: ='PFS- I- Orçam Base'!$N$2 -> 36 | E20: ='PFS- I- Orçam Base'!K22 -> 0 | F20: 0 | G20: 0 | H20: 0 | I20: 0 | J20: ='PFS- I- Orçam Base'!$E$28 -> 0.7053
A21: ='PFS- I- Orçam Base'!C25 -> Servente Contínuo (Auxiliar de Topografia) | B21: ='PFS- I- Orçam Base'!E25 -> T4 | C21: ='PFS- I- Orçam Base'!G25 -> 1 | D21: ='PFS- I- Orçam Base'!$N$2 -> 36 | E21: ='PFS- I- Orçam Base'!K25 -> 0 | F21: 0 | G21: 0 | H21: 0 | I21: 0 | J21: ='PFS- I- Orçam Base'!$E$28 -> 0.7053
A22: ='PFS- I- Orçam Base'!C26 -> Técnico Auxiliar (Laboratorista) | B22: ='PFS- I- Orçam Base'!E26 -> T3 | C22: ='PFS- I- Orçam Base'!G26 -> 1 | D22: ='PFS- I- Orçam Base'!$N$2 -> 36 | E22: ='PFS- I- Orçam Base'!K26 -> 0 | F22: 0 | G22: =D22*F22 -> 0 | H22: =ROUND((F22*J22),2) -> 0 | I22: =G22*J22 -> 0 | J22: ='PFS- I- Orçam Base'!$E$28 -> 0.7053
A23: ='PFS- I- Orçam Base'!C27 -> Servente Contínuo (Auxiliar de Laboratório) | B23: ='PFS- I- Orçam Base'!E27 -> T4 | C23: ='PFS- I- Orçam Base'!G27 -> 1 | D23: ='PFS- I- Orçam Base'!$N$2 -> 36 | E23: ='PFS- I- Orçam Base'!K27 -> 0 | F23: 0 | G23: =D23*F23 -> 0 | H23: =ROUND((F23*J23),2) -> 0 | I23: =G23*J23 -> 0 | J23: ='PFS- I- Orçam Base'!$E$28 -> 0.7053
A24: TOTAIS | F24: =ROUND((SUM(F13:F23)),2) -> 0 | G24: =ROUND((SUM(G13:G23)),2) -> 0 | H24: =ROUND((SUM(H13:H23)),2) -> 0 | I24: =SUM(I13:I23) -> 0
A25: NOME DO INFORMANTE: | H25: QUALIFICAÇÃO:
A27: ASSINATURA: | I27: DATA:
A29: OBSERVAÇÃO:
A30: DETALHAR OS ENCARGOS SOCIAIS NO FOR PFS-VII
A31: TODOS OS EMPREGADOS A SEREM CONTRATADOS DEVERÃO COMPROVAR VÍNCULO EMPREGATÍCIO, POR MEIO DE CARTEIRA DE TRABALHO E PREVIDÊNCIA SOCIAL – CTPS ASSINADA.

Sheet PFS_III _Alimentação
A4: DESPESAS GERAIS ALIMENTAÇÃO - Almoço | H4: CODIGO:
H5: PFS-III
A8: =[36]PFS!A8 -> NOME DA CONSULTORA: | E8: OBJETO:
A10: CATEGORIA FUNCIONAL | B10: CATEGORIA | C10: TOTAL DE | D10: TOTAL DE | E10: SALÁRIO | F10: ALIMENTAÇÃO EQUIPE (ALMOÇO) R$/Unit | G10: ALIMENTAÇÃO
C11: HOMENS | D11: MESES | E11: MENSAL (R$) | G11: DIÁRIO | H11: MENSAL
G12: R$ | H12: R$
A14: ='PFS- I- Orçam Base'!C14 -> Engenheiro - Profissional Pleno | B14: ='PFS- I- Orçam Base'!E14 -> P2 | C14: ='PFS- I- Orçam Base'!G14 -> 1 | D14: ='PFS- I- Orçam Base'!$N$2 -> 36 | E14: ='PFS- I- Orçam Base'!K14 -> 0 | G14: =F14*C14 -> 0
A15: ='PFS- I- Orçam Base'!C15 -> Engenheiro - Profissional Júnior | B15: ='PFS- I- Orçam Base'!E15 -> P3 | C15: ='PFS- I- Orçam Base'!G15 -> 2 | D15: ='PFS- I- Orçam Base'!$N$2 -> 36 | E15: ='PFS- I- Orçam Base'!K15 -> 0 | G15: 0
A16: ='PFS- I- Orçam Base'!C16 -> Geólogo - Profissional Júnior | B16: ='PFS- I- Orçam Base'!E16 -> P3 | C16: ='PFS- I- Orçam Base'!G16 -> 1 | D16: ='PFS- I- Orçam Base'!$N$2 -> 36 | E16: ='PFS- I- Orçam Base'!K16 -> 0 | G16: =F16*C16 -> 0
A17: Auxiliar de Escritório | B17: A2 | C17: ='PFS- I- Orçam Base'!G18 -> 1 | D17: ='PFS- I- Orçam Base'!$N$2 -> 36 | E17: ='PFS- I- Orçam Base'!K18 -> 0 | G17: 0
A18: ='PFS- I- Orçam Base'!C19 -> Técnico - Profissional Especial | B18: ='PFS- I- Orçam Base'!E19 -> T0 | C18: ='PFS- I- Orçam Base'!G19 -> 1 | D18: ='PFS- I- Orçam Base'!$N$2 -> 36 | E18: ='PFS- I- Orçam Base'!K19 -> 0 | G18: 0
A19: ='PFS- I- Orçam Base'!C20 -> Técnico Auxiliar (Campo) | B19: ='PFS- I- Orçam Base'!E20 -> T3 | C19: ='PFS- I- Orçam Base'!G20 -> 3 | D19: ='PFS- I- Orçam Base'!$N$2 -> 36 | E19: ='PFS- I- Orçam Base'!K20 -> 0 | G19: 0
A20: ='PFS- I- Orçam Base'!C21 -> Topógrafo | B20: ='PFS- I- Orçam Base'!E21 -> T2 | C20: ='PFS- I- Orçam Base'!G21 -> 1 | D20: ='PFS- I- Orçam Base'!$N$2 -> 36 | E20: ='PFS- I- Orçam Base'!K21 -> 0 | G20: 0
A21: ='PFS- I- Orçam Base'!C22 -> Técnico de Edificações | B21: ='PFS- I- Orçam Base'!E22 -> T2 | C21: ='PFS- I- Orçam Base'!G22 -> 2 | D21: ='PFS- I- Orçam Base'!$N$2 -> 36 | E21: ='PFS- I- Orçam Base'!K22 -> 0 | G21: 0
A22: ='PFS- I- Orçam Base'!C25 -> Servente Contínuo (Auxiliar de Topografia) | B22: ='PFS- I- Orçam Base'!E25 -> T4 | C22: ='PFS- I- Orçam Base'!G25 -> 1 | D22: ='PFS- I- Orçam Base'!$N$2 -> 36 | E22: ='PFS- I- Orçam Base'!K25 -> 0 | G22: =F22*C22 -> 0
A23: ='PFS- I- Orçam Base'!C26 -> Técnico Auxiliar (Laboratorista) | B23: ='PFS- I- Orçam Base'!E26 -> T3 | C23: ='PFS- I- Orçam Base'!G26 -> 1 | D23: ='PFS- I- Orçam Base'!$N$2 -> 36 | E23: ='PFS- I- Orçam Base'!K26 -> 0 | G23: =F23*C23 -> 0
A24: ='PFS- I- Orçam Base'!C27 -> Servente Contínuo (Auxiliar de Laboratório) | B24: ='PFS- I- Orçam Base'!E27 -> T4 | C24: ='PFS- I- Orçam Base'!G27 -> 1 | D24: ='PFS- I- Orçam Base'!$N$2 -> 36 | E24: ='PFS- I- Orçam Base'!K27 -> 0 | G24: =F24*C24 -> 0
A25: TOTAIS | C25: =SUM(C14:C24) -> 15 | G25: =SUM(G14:G24) -> 0 | H25: =ROUND((SUM(H14:H24)),2) -> 0
A26: NOME DO INFORMANTE:
A28: ASSINATURA:
A31: Referência:
A32: 1- Os valores das diárias de alimentação para nível de engenheiro e geólogo estão conforme o sítio eletrônico
A33: "dissidio.com.br", para o estado de Rio Grande do Norte, vigente no ano de 2023, no valor de R$ 34,00.
A42: https://dissidio.com.br/salario/engenheiro-civil/#:~:text=vale%20refei%C3%A7%C3%A3o%202023-,Valor%20m%C3%A9dio%20de%20vale%20refei%C3%A7%C3%A3o%20e%20reajuste%202023%20para%20Engenheiro,dia%3A%20R%24%2034%2C00
A43: Data da pesquisa 28/02/2023
A45: 2- Os valores das diárias de alimentação para nível técnico e auxiliar estão conforme a CCT do Senalba do Rio Grade do Norte
A46: (Sindicato dos Empregados Em Entidades Culturais, Recreativas, de Assistência Social, de Orientação e Formação Profissional),
A47: vigente no ano de 2023, no valor de R$ 16,50.
A54: http://www.senalbarn.com.br/?p=10846#:~:text=Informamos%20a%20todos%20os%20trabalhadores,todos%20os%20trabalhadores%20do%20SESC%2F
A55: Data da pesquisa 28/02/2023
A57: O valor da diária de alimentação considerado para a planilha orçamentária foi a média simples entre o valor para engenheiro/geólogo e nível técnico/auxiliar,
A58: ou seja, valor da diária de alimentação = (34+16,50)/2 = R$ 25,25.

Sheet PFS_IV Desp Gerais
B4: DESPESAS GERAIS | J4: CODIGO:
J5: PFS-IV
B6: NOME DA CONSULTORA:
B8: =[36]PFS!A10 -> LOCALIZAÇÃO: | E8: OBJETO: | J8: EDITAL:
A10: Código | B10: ITEM | C10: DISCRIMINAÇÃO | G10: UNID. | H10: QUANT. | I10: CUSTOS (R$)
I11: UNITÁRIO | J11: TOTAL
B12: 1 | C12: VEÍCULOS
A13: CPU | B13: 1.1 | C13: Veículo leve, 71 a 115 CV, com ar condicionado, incluindo despesas com combustível, óleos, manutenção, licenciamento, seguros, impostos | G13: mês | H13: ='PFS- I- Orçam Base'!J33 -> 144 | I13: ='PFS- I- Orçam Base'!K33 -> 0 | J13: =ROUND(I13*H13,2) -> 0
A14: CPU | B14: 1.2 | C14: PICK-UP - CD 4X4 Diesel | G14: mês | H14: ='PFS- I- Orçam Base'!J32 -> 144 | I14: ='PFS- I- Orçam Base'!K32 -> 0 | J14: =ROUND(I14*H14,2) -> 0 | K14: =SUM(J13:J14) -> 0
B15: 2 | C15: EQUIPAMENTOS
A16: DNIT/B8958 | B16: 2.1 | C16: Instrumental de Topografia | G16: mês | H16: ='PFS- I- Orçam Base'!J35 -> 36 | J16: =ROUND(H16*I16,2) -> 0
A17: DNIT/B8957 | B17: 2.2 | C17: Instrumental de Solos | G17: mês | H17: 36 | J17: =ROUND(H17*I17,2) -> 0
A18: DNIT/B8956 | B18: 2.3 | C18: Instrumental de Concreto | G18: mês | H18: 36 | J18: 0
A19: Cotação | B19: 2.4 | C19: Equipamento de topografia - drone para mapeamento | G19: un | H19: 1 | J19: =ROUND(H19*I19,2) -> 0 | K19: =SUM(J16:J19) -> 0
B20: 3 | C20: MANUTENÇÃO E ADMINISTRAÇÃO DE ESCRITÓRIO
A21: DNIT/B8952 | B21: 3.1 | C21: Aluguel de Escritório | G21: mês | H21: 36 | I21: ='PFS- I- Orçam Base'!K38 -> 0 | J21: =ROUND(H21*I21,2) -> 0
A22: DNIT/B8953 | B22: 3.2 | C22: ='PFS- I- Orçam Base'!C39 -> Cesta de Mobiliário de Escritório | G22: mês | H22: ='PFS- I- Orçam Base'!J39 -> 36 | I22: ='PFS- I- Orçam Base'!K39 -> 0 | J22: 0
A23: DNIT/B8959 | B23: 3.3 | C23: Custos Diversos de Escritório | G23: mês | H23: =H22 -> 36 | I23: ='PFS- I- Orçam Base'!K40 -> 0 | J23: 0 | K23: =SUM(J21:J23) -> 0
B24: 4 | C24: =UPPER("Alimentação") -> ALIMENTAÇÃO
B25: 4.1 | C25: Alimentação | G25: mês | H25: ='PFS- I- Orçam Base'!J42 -> 36 | I25: ='PFS- I- Orçam Base'!K42 -> 0 | J25: =ROUND(H25*I25,2) -> 0
C27: TOTAL DE DESPESAS GERAIS | J27: =SUM(J13:J26) -> 0
C28: NOME DO INFORMANTE: | H28: QUALIFICAÇÃO:
C30: ASSINATURA: | I30: DATA:
B32: OBSERVAÇÃO:
B33: DETALHAR A ALIMENTAÇÃO NO PFS-III
B36: Drone - DJI Mavic 3 Multispectral
B37: Data da pesquisa - 24/02/2023
B38: https://www.google.com/search?tbm=shop&sxsrf=AJOqlzW55vv860fUcGk9yf2Wy-0C4_CsWw:1677258157051&q=DJI+Mavic+3+Multispectral&spell=1&sa=X&ved=0ahUKEwimwJbF0a79AhX9qpUCHZGqDwQQBQjcCSgA
K40: PRODUTO | L40: COT. 1 | M40: COT. 2 | N40: COT. 3 | O40: COT. 4 | P40: COT. 5 | Q40: COT. 6 | R40: COT. 7 | S40: COT. 8 | T40: COT. 9 | U40: COT. 10
K41: DJI Mavic 3 Multispectral | L41: 25499 | M41: 42790 | N41: 23999.99 | O41: 46791 | P41: 23389 | Q41: 44000 | R41: 33072.02 | S41: 45990 | T41: 39990 | U41: 31491
K43: CV= | L43: =_xlfn.STDEV.S(L41:U41)/AVERAGE(L41:U41) -> 0.261
K44: Média= | L44: =AVERAGE(L41:U41) -> 35701.2
K45: Mediana= | L45: =MEDIAN(L41:U41) -> 36531.01
K46: Menor= | L46: =SMALL(L44:L45,1) -> 35701.2

Sheet PFS_VI Despesas Fiscais
A4: DETALHAMENTO DE DESPESAS FISCAIS | G4: CODIGO:
G5: PFS-VI
A6: NOME DA CONSULTORA:
A8: =[37]PFS!A10 -> LOCALIZAÇÃO: | C8: OBJETO:
A10: DISCRIMINAÇÃO | F10: VALORES
F11: DF % | G11: DF' %
A13: 1 - ISS | F13: 5
A14: 2 - PIS | F14: =1.65*0.8 -> 1.32
A15: 3 - COFINS | F15: =7.6*0.8 -> 6.08
A40: TOTAIS DE DESPESAS FISCAIS | F40: =F13+F14+F15+F16 -> 12.4 | G40: =((1/(1-F40%))-1)*100 -> 14.16
A41: NOME DO INFORMANTE: | D41: QUALIFICAÇÃO:
A43: ASSINATURA: | F43: DATA:
A45: Observação:
A46: As despesas fiscais (DF) incidem sobre o total da fatura e não sobre os custos incorridos. Portanto aplicar a seguinte fórmula:
A47: DF' = { [ 1 / ( 1 - DF ) ] - 1 } x 100
A48: ou seja, para o valor máximo de 12,40%, o valor a ser aplicado na composição dos preços será:
A49: DF' = { [ 1 / ( 1 - 0,1240 ) ] - 1 } x 100
A50: DF' =0,1416 ou 14,16%

Sheet PFS_V_Det. Custos Adm
A5: DETALHAMENTO DO CUSTO DE ADMINISTRAÇÃO | F5: CODIGO:
F6: PFS-V
A7: NOME DA CONSULTORA:
A9: =[37]PFS!A10 -> LOCALIZAÇÃO: | C9: OBJETO:
A11: DISCRIMINAÇÃO | F11: VALORES
F12: %
A13: 1 | B13: Custos da equipe da administração central da empresa consultora (diretoria, pessoal técnico de apoio e pessoal administrativo não diretamente vinculado à prestação dos serviços) | F13: 0.15
B36: TOTAIS DO CUSTO DE ADMINISTRAÇÃO | F36: =SUM(F13:F35) -> 0.15
A37: NOME DO INFORMANTE: | D37: QUALIFICAÇÃO:
A38: ASSINATURA: | F38: DATA:
A39: OBSERVAÇAO:

Sheet PFS_VII Det_ Enc_ Soc_
A4: DETALHAMENTO DOS ENCARGOS SOCIAIS | H4: CODIGO:
H5: PFS-VII
A6: NOME DA CONSULTORA:
A8: =[36]PFS!A10 -> LOCALIZAÇÃO: | C8: OBJETO: | H8: EDITAL:
A10: DISCRIMINAÇÃO | E10: COM DESONERAÇÃO | G10: SEM DESONERAÇÃO
E11: HORISTA % | F11: MENSALISTA % | G11: HORISTA % | H11: MENSALISTA %
A12: A | B12: ENCARGOS SOCIAIS BÁSICOS
A13: A1 | B13: INSS | E13: 0 | F13: 0 | G13: 0.2 | H13: 0.2
A14: A2 | B14: SESI | E14: 0.015 | F14: 0.015 | G14: 0.015 | H14: 0.015
A15: A3 | B15: SENAI | E15: 0.01 | F15: 0.01 | G15: 0.01 | H15: 0.01
A16: A4 | B16: INCRA | E16: 0.002 | F16: 0.002 | G16: 0.002 | H16: 0.002
A17: A5 | B17: SEBRAE | E17: 0.006 | F17: 0.006 | G17: 0.006 | H17: 0.006
A18: A6 | B18: Salário Educação | E18: 0.025 | F18: 0.025 | G18: 0.025 | H18: 0.025
A19: A7 | B19: Seguro Contra Acidente de Trabalho | E19: 0.03 | F19: 0.03 | G19: 0.03 | H19: 0.03
A20: A8 | B20: FGTS | E20: 0.08 | F20: 0.08 | G20: 0.08 | H20: 0.08
A21: A9 | B21: SECONCI | E21: 0 | F21: 0 | G21: 0 | H21: 0
A22: SUBTOTAL DE "A" | E22: 0.168 | F22: 0.168 | G22: 0.368 | H22: 0.368
A24: B | B24: ENCARGOS SOCIAIS QUE RECEBEM INCIDÊNCIA DE "A"
A25: B1 | B25: Repouso Semanal Remunerado | E25: 0.1798 | F25: Não incide | G25: 0.1798 | H25: Não incide
A26: B2 | B26: Feriados | E26: 0.0428 | F26: Não incide | G26: 0.0428 | H26: Não incide
A27: B3 | B27: Auxílio - Enfermidade | E27: 0.0087 | F27: 0.0066 | G27: 0.0087 | H27: 0.0066
A28: B4 | B28: 13º Salário | E28: 0.1102 | F28: 0.0833 | G28: =E28 -> 0.1102 | H28: =F28 -> 0.0833
A29: B5 | B29: Licença Paternidade | E29: 0.0007 | F29: 0.0006 | G29: 0.0007 | H29: 0.0006
A30: B6 | B30: Faltas Justificadas | E30: 0.0073 | F30: 0.0056 | G30: =E30 -> 0.0073 | H30: =F30 -> 0.0056
A31: B7 | B31: Dias de Chuvas | E31: 0.018 | F31: Não incide | G31: =E31 -> 0.018 | H31: Não incide
A32: B8 | B32: Auxílio Acidente de Trabalho | E32: 0.0011 | F32: 0.0008 | G32: =E32 -> 0.0011 | H32: =F32 -> 0.0008
A33: B9 | B33: Férias Gozadas | E33: 0.11 | F33: 0.0832 | G33: =E33 -> 0.11 | H33: =F33 -> 0.0832
A34: B10 | B34: Salário Maternidade | E34: 0.0003 | F34: 0.0002 | G34: =E34 -> 0.0003 | H34: =F34 -> 0.0002
A35: SUBTOTAL DE "B" | E35: =SUM(E25:E34) -> 0.4789 | F35: =SUM(F25:F34) -> 0.1803 | G35: =SUM(G25:G34) -> 0.4789 | H35: =SUM(H25:H34) -> 0.1803
A37: C | B37: ENCARGOS SOCIAIS QUE NÃO RECEBEM INCIDÊNCIA DE "A"
A38: C1 | B38: Aviso prévio (indenizado) | E38: 0.0517 | F38: 0.0391 | G38: =E38 -> 0.0517 | H38: 0.0391
A39: C2 | B39: Aviso prévio (trabalhado) | E39: 0.0012 | F39: 0.0009 | G39: 0.0012 | H39: 0.0009
A40: C3 | B40: Férias (indenizadas) | E40: 0.0277 | F40: 0.021 | G40: 0.0277 | H40: 0.021
A41: C4 | B41: Depósito Rescisão Sem Justa Causa | E41: 0.0301 | F41: 0.0228 | G41: 0.0301 | H41: 0.0228
A42: C5 | B42: Indenização Adicional | E42: 0.0043 | F42: 0.0033 | G42: 0.0043 | H42: 0.0033
A43: SUBTOTAL DE "C" | E43: =SUM(E38:E42) -> 0.115 | F43: =SUM(F38:F42) -> 0.0871 | G43: =SUM(G38:G42) -> 0.115 | H43: =SUM(H38:H42) -> 0.0871
A45: D | B45: REINCIDÊNCIAS
A46: D1 | B46: Reincidência de "A" sobre "B" | E46: =E22*E35 -> 0.0805 | F46: =F22*F35 -> 0.0303 | G46: =G22*G35 -> 0.1762 | H46: =H22*H35 -> 0.0664
A47: D2 | B47: Reincidência de Grupo A sobre aviso prévio trabalhado e reincidência do FGTS sobre Aviso Prévio Indenizado | E47: =E22*E39+E20*E38 -> 0.0043 | F47: =F22*F39+F20*F38 -> 0.0033 | G47: =G22*G39+G20*G38 -> 0.0046 | H47: =H22*H39+H20*H38 -> 0.0035
A48: SUBTOTAL DE "D" | E48: =E46+E47 -> 0.0848 | F48: =F46+F47 -> 0.0336 | G48: =G46+G47 -> 0.1808 | H48: =H46+H47 -> 0.0699
A50: TOTAIS DE ENCARGOS SOCIAIS | E50: =E48+E43+E35+E22 -> 0.8467 | F50: =F48+F43+F35+F22 -> 0.469 | G50: =G48+G43+G35+G22 -> 1.1427 | H50: =H48+H43+H35+H22 -> 0.7053
A51: NOME DO INFORMANTE:
A52: ASSINATURA: | G52: DATA:
A53: Observação:

Sheet Cron Físico-Financeiro
A2: CRONOGRAMA FÍSICO-FINANCEIRO | Q2: ='PFS - Orçamento Base'!A8 -> CONTRATAÇÃO DE EMPRESA PARA A PRESTAÇÃO DOS SERVIÇOS DE ENGENHARIA DE APOIO À FISCALIZAÇÃO E SUPERVISÃO DE OBRAS DE IMPLANTAÇÃO DE SISTEMAS ADUTORES, NA REGIÃO DO SERIDÓ POTIGUAR, CORRESPONDENTES AOS TRECHOS 1N, 2N, 4N e 5N.
A4: PERÍODO | D4: PERÍODO - MESES
A6: MESES ACUMULADOS | D6: 1 | E6: =D6+1 -> 2 | F6: 3 | G6: 4 | H6: 5 | I6: 6 | J6: 7 | K6: 8 | L6: 9 | M6: 10 | N6: 11 | O6: 12 | P6: 13 | Q6: 14 | R6: 15 | S6: 16 | T6: 17 | U6: 18 | V6: 19 | W6: 20 | X6: 21 | Y6: 22 | Z6: 23 | AA6: 24 | AB6: 25 | AC6: 26 | AD6: 27 | AE6: 28 | AF6: 29 | AG6: 30 | AH6: 31 | AI6: 32 | AJ6: 33 | AK6: 34 | AL6: 35 | AM6: 36
A7: FÍSICO | B7: Relatórios Mensais | C7: Unid.
A8: FINANC. | B8: PARCIAL | C8: % | D8: =1/36 -> 0.0278 | E8: =1/36 -> 0.0278 | F8: =1/36 -> 0.0278 | G8: 0.0278 | H8: 0.0278 | I8: 0.0278 | J8: 0.0278 | K8: 0.0278 | L8: 0.0278 | M8: 0.0278 | N8: 0.0278 | O8: 0.0278 | P8: 0.0278 | Q8: 0.0278 | R8: 0.0278 | S8: 0.0278 | T8: 0.0278 | U8: 0.0278 | V8: 0.0278 | W8: 0.0278 | X8: 0.0278 | Y8: 0.0278 | Z8: 0.0278 | AA8: 0.0278 | AB8: 0.0278 | AC8: 0.0278 | AD8: 0.0278 | AE8: 0.0278 | AF8: 0.0278 | AG8: 0.0278 | AH8: 0.0278 | AI8: 0.0278 | AJ8: 0.0278 | AK8: 0.0278 | AL8: 0.0278 | AM8: =1-SUM(D8:AL8) -> 0.027
C9: R$ | D9: ='PFS- I- Orçam Base'!L52 -> 0 | E9: =D9 -> 0 | F9: =E9 -> 0 | G9: 0 | H9: 0 | I9: 0 | J9: 0 | K9: 0 | L9: 0 | M9: 0 | N9: 0 | O9: 0 | P9: 0 | Q9: 0 | R9: 0 | S9: 0 | T9: 0 | U9: 0 | V9: 0 | W9: 0 | X9: 0 | Y9: 0 | Z9: 0 | AA9: 0 | AB9: 0 | AC9: 0 | AD9: 0 | AE9: 0 | AF9: =AE9 -> 0 | AG9: 0 | AH9: 0 | AI9: 0 | AJ9: 0 | AK9: 0 | AL9: 0 | AM9: =AL9+0.02 -> 0.02
B10: ACUMULADO | C10: % | D10: =SUM(D8) -> 0.0278 | E10: =SUM(D10,E8) -> 0.0556 | F10: 0.0834 | G10: 0.1112 | H10: 0.139 | I10: 0.1668 | J10: 0.1946 | K10: 0.2224 | L10: 0.2502 | M10: 0.278 | N10: 0.3058 | O10: 0.3336 | P10: 0.3614 | Q10: 0.3892 | R10: 0.417 | S10: 0.4448 | T10: 0.4726 | U10: 0.5004 | V10: 0.5282 | W10: 0.556 | X10: 0.5838 | Y10: 0.6116 | Z10: 0.6394 | AA10: 0.6672 | AB10: 0.695 | AC10: 0.7228 | AD10: 0.7506 | AE10: 0.7784 | AF10: 0.8062 | AG10: 0.834 | AH10: 0.8618 | AI10: 0.8896 | AJ10: 0.9174 | AK10: 0.9452 | AL10: 0.973 | AM10: 1
C11: R$ | D11: =SUM(D9) -> 0 | E11: =SUM(D11,E9) -> 0 | F11: 0 | G11: 0 | H11: 0 | I11: 0 | J11: 0 | K11: 0 | L11: 0 | M11: 0 | N11: 0 | O11: 0 | P11: 0 | Q11: 0 | R11: 0 | S11: 0 | T11: 0 | U11: 0 | V11: 0 | W11: 0 | X11: 0 | Y11: 0 | Z11: 0 | AA11: 0 | AB11: 0 | AC11: 0 | AD11: 0 | AE11: 0 | AF11: 0 | AG11: 0 | AH11: 0 | AI11: 0 | AJ11: 0 | AK11: 0 | AL11: 0 | AM11: 0.02
A14: Nome da Empresa IDENTIFICAÇÃO, QUALIFICAÇÃO E ASSINATURA DA RESPONSÁVEL

Sheet Cron. Físico-Finan (BRANCO) (hidden)
A1: CRONOGRAMA FÍSICO-FINANCEIRO | I1: Data Licitação/Proposta.:
I2: Prazo Inicial: Lote: Único Ref.:MÊS-BASE julho/2020
A3: PÉRIODO | D3: PERÍODO - DIAS
A5: DIAS ACUMULADOS | D5: 30 | E5: =D5+30 -> 60 | F5: =E5+30 -> 90 | G5: 120 | H5: 150 | I5: 180 | J5: 210 | K5: 240 | L5: 270 | M5: 300 | N5: 330 | O5: 360
A6: FÍSICO | B6: Relatórios Mensais | C6: Unid.
A7: FINANCEIRO | B7: PARCIAL | C7: % | D7: ='Cron Físico-Financeiro'!D8 -> 0.0278 | E7: ='Cron Físico-Financeiro'!E8 -> 0.0278 | F7: ='Cron Físico-Financeiro'!F8 -> 0.0278 | G7: ='Cron Físico-Financeiro'!K8 -> 0.0278 | H7: ='Cron Físico-Financeiro'!L8 -> 0.0278 | I7: ='Cron Físico-Financeiro'!Q8 -> 0.0278 | J7: ='Cron Físico-Financeiro'!U8 -> 0.0278 | K7: ='Cron Físico-Financeiro'!X8 -> 0.0278 | L7: ='Cron Físico-Financeiro'!AB8 -> 0.0278 | M7: ='Cron Físico-Financeiro'!AC8 -> 0.0278 | N7: ='Cron Físico-Financeiro'!AD8 -> 0.0278 | O7: ='Cron Físico-Financeiro'!AE8 -> 0.0278
C8: R$ | D8: - | E8: - | F8: - | G8: - | H8: - | I8: - | J8: - | K8: - | L8: - | M8: - | N8: - | O8: -
B9: ACUMULADO | C9: % | D9: =E7 -> 0.0278 | E9: =E7+D9 -> 0.0556 | F9: =F7+E9 -> 0.0834 | G9: 0.1112 | H9: 0.139 | I9: 0.1668 | J9: 0.1946 | K9: 0.2224 | L9: 0.2502 | M9: 0.278 | N9: 0.3058 | O9: 0.3336
C10: R$ | D10: - | E10: - | F10: - | G10: - | H10: - | I10: - | J10: - | K10: - | L10: - | M10: - | N10: - | O10: -
A12: PÉRIODO | D12: PERÍODO - DIAS
A14: DIAS ACUMULADOS | D14: =O5+30 -> 390 | E14: =D14+30 -> 420 | F14: =E14+30 -> 450 | G14: 480 | H14: 510 | I14: 540 | J14: 570 | K14: 600 | L14: 630 | M14: 660 | N14: 690 | O14: 720
A15: FÍSICO | B15: Relatórios Mensais | C15: Unid.
A16: FINANCEIRO | B16: PARCIAL | C16: % | D16: ='Cron Físico-Financeiro'!#REF! ->  | E16: ='Cron Físico-Financeiro'!#REF! ->  | F16: ='Cron Físico-Financeiro'!#REF! ->  | G16: ='Cron Físico-Financeiro'!#REF! ->  | H16: ='Cron Físico-Financeiro'!#REF! ->  | I16: ='Cron Físico-Financeiro'!#REF! ->  | J16: ='Cron Físico-Financeiro'!#REF! ->  | K16: ='Cron Físico-Financeiro'!#REF! ->  | L16: ='Cron Físico-Financeiro'!#REF! ->  | M16: ='Cron Físico-Financeiro'!#REF! ->  | N16: ='Cron Físico-Financeiro'!#REF! ->  | O16: ='Cron Físico-Financeiro'!#REF! -> 
C17: R$ | D17: - | E17: - | F17: - | G17: - | H17: - | I17: - | J17: - | K17: - | L17: - | M17: - | N17: - | O17: -
B18: ACUMULADO | C18: % | D18: =O9+D16 ->  | E18: =D18+E16 ->  | F18: =E18+F16 -> 
C19: R$ | D19: - | E19: - | F19: - | G19: - | H19: - | I19: - | J19: - | K19: - | L19: - | M19: - | N19: - | O19: -
A21: Orçamento Referencial - CONTRATAÇÃO DE EMPRESA ESPECIALIZADA PARA PRESTAÇÃO DOS SERVIÇOS DE SUPERVISÃO DA ELABORAÇÃO DOS PROJETOS BÁSICO E EXECUTIVO E DA EXECUÇÃO DAS OBRAS DE DUAS PONTES NA BR-425/RO (RIO ARARAS E RIO RIBEIRÃO) Nome da Empresa IDENTIFICAÇÃO,QUALIFICAÇÃOE ASSINATURA DA RESPONSÁVEL

Sheet CPU VEICULO_PickUp
A2: Composição de Preços de Locação de Veículos
A3: CONTRATAÇÃO DE EMPRESA PARA A PRESTAÇÃO DOS SERVIÇOS DE ENGENHARIA DE APOIO À FISCALIZAÇÃO E SUPERVISÃO DE OBRAS DE IMPLANTAÇÃO DE SISTEMAS ADUTORES, NA REGIÃO DO SERIDÓ POTIGUAR, CORRESPONDENTES AOS TRECHOS 1N, 2N, 4N e 5N. | F3: CV | G3: Média | H3: Mediana | L3: CV | M3: Média | N3: Mediana | W3: CV | X3: Média | Y3: Mediana
A4: CODEVASF | F4: =_xlfn.STDEV.S(F7:I7)/AVERAGE(F7:I7) -> 0.0737 | G4: =AVERAGE(F7:I7) -> 171425 | H4: =MEDIAN(F7:I7) -> 169762 | L4: =_xlfn.STDEV.S(M6:T6)/AVERAGE(M6:T6) -> 0.081 | M4: =AVERAGE(M6:T6) -> 32.77 | N4: =MEDIAN(M6:T6) -> 32.7 | W4: =_xlfn.STDEV.S(X6:AD6)/AVERAGE(X6:AD6) -> 0.254 | X4: =AVERAGE(X6:AE6) -> 568.85 | Y4: =MEDIAN(X6:AE6) -> 499.9
A5: OBS: Preço sem BDI BDI= | F5: Preço FIPE - fevereiro/2023 | K5: PRODUTO - Pesquisa fev/2023 | L5: MENOR | M5: COT. 1 | N5: COT. 2 | O5: COT. 3 | P5: COT. 4 | Q5: COT. 5 | R5: COT. 6 | S5: COT. 7 | T5: COT. 8 | V5: PRODUTO - Pesquisa fev/2023 | W5: MENOR | X5: COT. 1 | Y5: COT. 2 | Z5: COT. 3 | AA5: COT. 4 | AB5: COT. 5 | AC5: COT. 6 | AD5: COT. 7
A6: Veículo tipo pick-up, cabine dupla - 2.0 16V 4x4 diesel Aut. | F6: Toro Endurance 2.0 16V 4x4 Diesel Aut. | G6: Toro Freedom 2.0 16V 4x4 TB Diesel Aut. | H6: Toro Volcano 2.0 16V 4x4 TB Diesel Aut. | I6: Toro Ranch 2.0 16V 4x4 TB Diesel Aut. | K6: LUBRIFICANTE 5W30 | L6: =SMALL(M4:N4,1) -> 32.7 | M6: 29.9 | N6: 31.08 | O6: 35 | P6: 34.1 | Q6: 32.7 | R6: 29.9 | S6: 36.74 | V6: Pneu 225/65 R17 | W6: =SMALL(X4:Y4,1) -> 499.9 | X6: 499.9 | Y6: 497.8 | Z6: 554.7 | AA6: 484.96 | AB6: 499.9 | AC6: 554.7 | AD6: 890
C7: Mensal (R$): | D7: =D47 -> 6992.26 | F7: 159544 | G7: 162649 | H7: 186632 | I7: 176875
C8: Diária (R$): | D8: =D7/22 -> 317.83
A9: A | C9: Depreciação mensal do equipamento
A10: A1 | C10: Preço de Aquisição | D10: =SMALL(G4:H4,1) -> 169762
A11: A2 | C11: Tempo previsto de vida útil (meses) | D11: 36
A12: A3 | C12: Previsão de recup. Na venda do bem usado | D12: 0.4
A13: A4 | C13: Custo mensal [A1-(A3xA1)]/A2 | D13: =(D10-(D12*D10))/D11 -> 2829.37
A14: B | C14: Juros pelo Capital empregado
A15: B1 | C15: Taxa mensal de Juros * | D15: =POWER(1+D53,1/12)-1 -> 0.010794
A16: B2 | C16: Juros s/depreciação/aluguel (B1xA4) | D16: =D15*D13 -> 30.54
A17: C | C17: Conservação e manutenção ** | D17: 0.75
A18: C1 | C18: Taxa de gastos s/a deprec. Inc. seguros (%) | D18: =D17 -> 0.75
A19: C2 | C19: Incidência mensal (C1xA4) | D19: =D18*D13 -> 2122.03
A20: D | C20: Combustível
A21: D1 | C21: Média mensal de quilômetro por veículo | D21: =130*22 -> 2860
A22: D2 | C22: Preço do litro de combustível | D22: 6.32
A23: D3 | C23: Quilômetros rodados com um litro combustivel | D23: 10
A24: D4 | C24: Combustivel (D1/D3)*D2 | D24: =(D21/D23)*D22 -> 1807.52
A25: E | C25: Lubrificantes
A26: E1 | C26: Quilometragem do Contrato (D1*12) | D26: =D21*36 -> 102960
A27: E2 | C27: Franquia por troca de óleo (km) | D27: 10000
A28: E3 | C28: Preço do litro de óleo | D28: =L6 -> 32.7
A29: E4 | C29: Quantidade de litros de óleo por troca | D29: 5
A30: E5 | C30: Quantidade de dias do Contrato | D30: =365*3 -> 1095
A31: E6 | C31: Lubrificantes E = (E1*E3*E4*30)/E2*E5 | D31: =(D26*D28*D29*30)/(D27*D30) -> 46.12
A32: F | C32: Pneus
A33: F1 | C33: Quilometragem do Contrato | D33: =D26 -> 102960
A34: F2 | C34: Vida do Pneu em quilômetros | D34: 45000
A35: F3 | C35: Quantidade de pneus | D35: 5
A36: F4 | C36: Preço do Pneu | D36: =W6 -> 499.9
A37: F5 | C37: Quantidade de dias do contrato | D37: =D30 -> 1095
A38: F6 | C38: Pneus = (F1*F3*F4*30)/(F2*F5) | D38: =(D33*D35*D36*30)/(D34*D37) -> 156.68
A39: G | C39: Motorista
A40: G1 | C40: Salário com encargos sociais | D40: 4185.11
A41: H | C41: Custo Mensal
C42: Sem Motorista (A4+B2+C2+D4+E6+F6) | D42: =D13+D16+D19+D24+D31+D38 -> 6992.26
C43: Com Motorista (A4+B2+C2+D4+E6+F6+G1) | D43: =D13+D16+D19+D24+D31+D38+D40 -> 11177.37
A44: I | C44: Custo Direto p/ km Rodado
C45: Sem Motorista | D45: =D42/D21 -> 2.44
C46: Com Motorista | D46: =D43/D21 -> 3.91
A47: J | C47: Preço cobrado sem BDI | D47: =D42*(1+D5) -> 6992.26
A48: J1 | C48: Sem Motorista | D48: =D47 -> 6992.26
A49: J2 | C49: Com Motorista | D49: =D43 -> 11177.37 | J49: https://www.google.com/search?q=lubrificante+5w30&sxsrf=AJOqlzUM514L6uswJHb1jIGpGgXchTtV5A:1677092590843&source=lnms&tbm=shop&sa=X&sqi=2&ved=2ahUKEwj_vYfh6Kn9AhVMBrkGHRT6Bv4Q_AUoAXoECAEQAw&biw=1600&bih=757&dpr=1 | U49: https://www.google.com/search?q=pneu+225%2F65+R17&sa=X&biw=1600&bih=757&tbm=shop&sxsrf=AJOqlzWsb-d4PS1_OUOEhKmRc2RbtSg3RQ%3A1677092596279&ei=9Gb2Y9K5ENTa5OUPvLykGA&ved=0ahUKEwjSg9Pj6Kn9AhVULbkGHTweCQMQ4dUDCAg&uact=5&oq=pneu+225%2F65+R17&gs_lcp=Cgtwcm9kdWN0cy1jYxADMgsIABCABBCxAxCDATIFCAAQgAQyBwgAEIAEEAoyBwgAEIAEEAoyBwgAEIAEEAoyBwgAEIAEEAoyBwgAEIAEEAoyBQgAEIAEMgcIABCABBAKMgcIABCABBAKOgQIIxAnOgQIABBDSgQIQRgAUABYoTJgqUBoAHAAeACAAdIFiAGUKZIBDTAuMi42LjIuMi4yLjGYAQCgAQHAAQE&sclient=products-cc
C51: OBSERVAÇÕES:
A52: * | C52: Calculado com base na taxa SELIC agosto/2022 - 13,75 % a.a
C53: SELIC AGOSTO / 2022 - Taxa de Juros Selic — Português (Brasil) (www.gov.br) | D53: 0.1375
A55: ** | C55: Conservação e manutenção - é calculado com o uso de um coeficiente multiplicador "k", conforme tabela abaixo, sobre a
C56: depreciação mensal do equipamento (Item A da planilha de composição de preços). Os valores de K são fornecidos por
C57: fabricantes.
C58: Metodologia conforme a bibliografia "Como Preparar Orçamentos de Obras", 3 edição, Aldo Dórea Mattos, 2019.
C60: Preço calculado sem BDI
F85: https://precos.petrobras.com.br/sele%C3%A7%C3%A3o-de-estados-diesel

Sheet CPU VEICULO_Pequeno
A2: Composição de Preços de Locação de Veículos
A3: CONTRATAÇÃO DE EMPRESA PARA A PRESTAÇÃO DOS SERVIÇOS DE ENGENHARIA DE APOIO À FISCALIZAÇÃO E SUPERVISÃO DE OBRAS DE IMPLANTAÇÃO DE SISTEMAS ADUTORES, NA REGIÃO DO SERIDÓ POTIGUAR, CORRESPONDENTES AOS TRECHOS 1N, 2N, 4N e 5N. | F3: CV | G3: Média | H3: Mediana | L3: CV | M3: Média | N3: Mediana | X3: CV | Y3: Média | Z3: Mediana
A4: CODEVASF | F4: =_xlfn.STDEV.S(F7:I7)/AVERAGE(F7:I7) -> 0.1064 | G4: =AVERAGE(F7:I7) -> 72873.5 | H4: =MEDIAN(F7:I7) -> 72609.5 | L4: =_xlfn.STDEV.S(M6:U6)/AVERAGE(M6:U6) -> 0.25 | M4: =AVERAGE(M6:U6) -> 29.6 | N4: =MEDIAN(M6:U6) -> 28.9 | X4: =_xlfn.STDEV.S(Y6:AF6)/AVERAGE(Y6:AF6) -> 0.219 | Y4: =AVERAGE(Y6:AF6) -> 286.98 | Z4: =MEDIAN(Y6:AF6) -> 301.5
A5: OBS: Preço sem BDI BDI= | F5: Preço FIPE - fevereiro/2023 | K5: PRODUTO - Pesquisa fev/2023 | L5: MENOR | M5: COT. 1 | N5: COT. 2 | O5: COT. 3 | P5: COT. 4 | Q5: COT. 5 | R5: COT. 6 | S5: COT. 7 | T5: COT. 8 | U5: COT. 9 | W5: PRODUTO - Pesquisa fev/2023 | X5: MENOR | Y5: COT. 1 | Z5: COT. 2 | AA5: COT. 3 | AB5: COT. 4 | AC5: COT. 5 | AD5: COT. 6 | AE5: COT. 7 | AF5: COT. 8 | AG5: COT. 9
A6: (B2) Gol 1.0 T. Flex 12V 5p | F6: Volksvagen Gol 1.0 | G6: HB20 Platinum 1.0 TB Flex 12V Mec. | H6: ONIX HATCH LT 1.0 12V Flex 5p Mec. | I6: MOBI TREKKING 1.0 Flex 5p. | K6: LUBRIFICANTE 15W40 | L6: =SMALL(M4:N4,1) -> 28.9 | M6: 28.9 | N6: 22.9 | O6: 28 | P6: =119.9/4 -> 29.98 | Q6: 39.9 | R6: 20 | S6: 41.29 | T6: 22.9 | U6: 32.5 | W6: Pneu 185/65 R14 | X6: =SMALL(Y4:Z4,1) -> 286.98 | Y6: 300.64 | Z6: 244.93 | AA6: 273.5 | AB6: 329.9 | AC6: 156.99 | AD6: =1209.45/4 -> 302.36 | AE6: =1354/4 -> 338.5 | AF6: =698/2 -> 349
C7: Mensal (R$): | D7: =D47 -> 3283.81 | F7: 65590 | G7: 80685 | H7: 78363 | I7: 66856
C8: Diária (R$): | D8: =D7/22 -> 149.26
A9: A | C9: Depreciação mensal do equipamento
A10: A1 | C10: Preço de Aquisição | D10: =SMALL(G4:H4,1) -> 72609.5
A11: A2 | C11: Tempo previsto de vida útil (meses) | D11: 36
A12: A3 | C12: Previsão de recup. Na venda do bem usado | D12: 0.4
A13: A4 | C13: Custo mensal [A1-(A3xA1)]/A2 | D13: =(D10-(D12*D10))/D11 -> 1210.16
A14: B | C14: Juros pelo Capital empregado
A15: B1 | C15: Taxa mensal de Juros * | D15: =POWER(1+D53,1/12)-1 -> 0.010794
A16: B2 | C16: Juros s/depreciação/aluguel (B1xA4) | D16: =D15*D13 -> 13.06
A17: C | C17: Conservação e manutenção ** | D17: 0.75
A18: C1 | C18: Taxa de gastos s/a deprec. Inc. seguros (%) | D18: =D17 -> 0.75
A19: C2 | C19: Incidência mensal (C1xA4) | D19: =D18*D13 -> 907.62
A20: D | C20: Combustível
A21: D1 | C21: Média mensal de quilômetro por veículo | D21: =130*22 -> 2860
A22: D2 | C22: Preço do litro de combustível | D22: 5.08
A23: D3 | C23: Quilômetros rodados com um litro combustivel | D23: =(12.8+13.3+15.3+15)/4 -> 14.1
A24: D4 | C24: Combustivel (D1/D3)*D2 | D24: =(D21/D23)*D22 -> 1030.41
A25: E | C25: Lubrificantes
A26: E1 | C26: Quilometragem do Contrato (D1*12) | D26: =D21*36 -> 102960
A27: E2 | C27: Franquia por troca de óleo (km) | D27: 10000
A28: E3 | C28: Preço do litro de óleo | D28: =L6 -> 28.9
A29: E4 | C29: Quantidade de litros de óleo por troca | D29: 4
A30: E5 | C30: Quantidade de dias do Contrato | D30: =365*3 -> 1095
A31: E6 | C31: Lubrificantes E = (E1*E3*E4*30)/E2*E5 | D31: =(D26*D28*D29*30)/(D27*D30) -> 32.61
A32: F | C32: Pneus
A33: F1 | C33: Quilometragem do Contrato | D33: =D26 -> 102960
A34: F2 | C34: Vida do Pneu em quilômetros | D34: 45000
A35: F3 | C35: Quantidade de pneus | D35: 5
A36: F4 | C36: Preço do Pneu | D36: =X6 -> 286.98
A37: F5 | C37: Quantidade de dias do contrato | D37: =D30 -> 1095 | K37: https://www.google.com/search?q=lubrificante+15w40+1l&sa=X&biw=1600&bih=757&tbm=shop&sxsrf=AJOqlzUezMM_9i0M4NKjKqAMycLuOygp_g%3A1677158931166&ei=E2r3Y5e2CcH31sQPsK67CA&ved=0ahUKEwjXi8vy36v9AhXBu5UCHTDXDgEQ4dUDCAg&uact=5&oq=lubrificante+15w40+1l&gs_lcp=Cgtwcm9kdWN0cy1jYxADMgsIABAWEB4Q8QQQGDoICAAQgAQQsAM6CQgAEAcQHhCwAzoJCAAQCBAeELADOgkIABAeELADEBg6DggAEAUQHhDxBBCwAxAYOgUIABCABDoGCAAQFhAeOggIABAWEB4QGEoECEEYAVDeBFi3DWD0D2gBcAB4AIABpQWIAZAIkgEHMy0xLjAuMZgBAKABAcgBCsABAQ&sclient=products-cc
A38: F6 | C38: Pneus = (F1*F3*F4*30)/(F2*F5) | D38: =(D33*D35*D36*30)/(D34*D37) -> 89.95
A39: G | C39: Motorista
A40: G1 | C40: Salário com encargos sociais | D40: 4185.11
A41: H | C41: Custo Mensal | V41: https://www.google.com/search?q=Pneu+185%2F65+R14&sa=X&hl=pt-BR&biw=1600&bih=757&tbm=shop&sxsrf=AJOqlzVJW-LYM1ZPHImwhsD-4UwyAvTluQ%3A1677158863331&ei=z2n3Y-uxE-zT1sQP0r-OmAs&ved=0ahUKEwir1Z7S36v9AhXsqZUCHdKfA7MQ4dUDCAg&uact=5&oq=Pneu+185%2F65+R14&gs_lcp=Cgtwcm9kdWN0cy1jYxADMgsIABCABBCxAxCDATIFCAAQgAQyBQgAEIAEMgUIABCABDIFCAAQgAQyBQgAEIAEMgUIABCABDIFCAAQgAQyBQgAEIAEMgUIABCABEoECEEYAFD5A1jGCWC1EGgAcAB4AIABrQmIAdcbkgEHNS0yLjAuMpgBAKABAcABAQ&sclient=products-cc
C42: Sem Motorista (A4+B2+C2+D4+E6+F6) | D42: =D13+D16+D19+D24+D31+D38 -> 3283.81
C43: Com Motorista (A4+B2+C2+D4+E6+F6+G1) | D43: =D13+D16+D19+D24+D31+D38+D40 -> 7468.92
A44: I | C44: Custo Direto p/ km Rodado
C45: Sem Motorista | D45: =D42/D21 -> 1.15
C46: Com Motorista | D46: =D43/D21 -> 2.61
A47: J | C47: Preço cobrado sem BDI | D47: =D42*(1+D5) -> 3283.81
A48: J1 | C48: Sem Motorista | D48: =D47 -> 3283.81
A49: J2 | C49: Com Motorista | D49: =D43 -> 7468.92
A52: * | C52: Calculado com base na taxa SELIC agosto/2022 - 13,75 % a.a
C53: SELIC AGOSTO / 2022 - Taxa de Juros Selic — Português (Brasil) (www.gov.br) | D53: 0.1375
A55: ** | C55: Conservação e manutenção - é calculado com o uso de um coeficiente multiplicador "k", conforme tabela abaixo, sobre a
C56: depreciação mensal do equipamento (Item A da planilha de composição de preços). Os valores de K são fornecidos por
C57: fabricantes.
C58: Metodologia conforme a bibliografia "Como Preparar Orçamentos de Obras", 3 edição, Aldo Dórea Mattos, 2019.
C60: Preço calculado sem BDI
F84: https://precos.petrobras.com.br/sele%C3%A7%C3%A3o-de-estados-gasolina

Sheet Cálculo Desembolso (hidden)
B2: CÁLCULO DE DESEMBOLSO MENSAL
B3: Janeiro | C3: -- | D3: ='Cron Físico-Financeiro'!E9 -> 0 | E3: =D3 -> 0
B4: Fevereiro | C4: -- | D4: ='Cron Físico-Financeiro'!F9 -> 0 | E4: =D4 -> 0
B5: Março | C5: -- | D5: =D4 -> 0 | E5: =D5 -> 0
B6: Abril | C6: -- | D6: 0 | E6: =D6 -> 0
B7: Maio | C7: -- | D7: 0 | E7: =E6 -> 0
B8: Junho | C8: -- | D8: 0 | E8: 0
B9: Julho | C9: -- | D9: 0 | E9: 0
B10: Agosto | C10: -- | D10: 0 | E10: 0
B11: Setembro | C11: -- | D11: 0 | E11: 0
B12: Outubro | C12: -- | D12: 0 | E12: 0 | G12: ='PFS- I- Orçam Base'!L51 -> 0
B13: Novembro | C13: -- | D13: 0 | E13: 0
B14: Dezembro | C14: ='Cron Físico-Financeiro'!D11 -> 0 | D14: 0
B15: Total | C15: =SUM(C14) -> 0 | D15: =SUM(D3:D14) -> 0 | E15: =SUM(E3:E14) -> 0

Sheet Critérios de Pagamento (hidden)
A1: NÃO É NECESSÁRIO INSERIR COMO ANEXO DO EDITAL - TODAS AS INFORMAÇÕES NECESSÁRIAS ESTÃO EXPOSTAS NO CRONOGRAMA FÍSICO-FINANCEIRO
A2: Critérios de Pagamento
A3: DESCRIÇÃO DO SERVIÇO | C3: UNID | E3: QUANT | F3: PERCENTUAL S/ PREÇO GLOBAL | G3: VALOR TOTAL
A4: PROJETO
A5: P1 | B5: Assessoramento de Engenharia
A6: P1.1 | B6: Gestão de Planejamento e Projetos | C6: Relatório | D6: CONSULTORIA | E6: 36 | F6: 0.219972 | G6: =F6*$G$15 -> 9518554.4
A7: P1.2 | B7: Gestão de Desapropriação, Reassentamento e Meio Ambiente | C7: Relatório | D7: CONSULTORIA | E7: 36 | F7: 0.22867 | G7: =F7*$G$15 -> 9894931.33
A8: P1.3 | B8: Gestão de Construção | C8: Relatório | D8: CONSULTORIA | E8: 36 | F8: 0.282679 | G8: =F8*$G$15 -> 12231990.61
A9: P2 | B9: Assessoramento Gerencial
A10: P2.1 | B10: Assessoria Orçamentária, Financeira e Contábil | C10: Relatório | D10: CONSULTORIA | E10: 36 | F10: 0.037727 | G10: =F10*$G$15 -> 1632510.05
A11: P2.2 | B11: Assessoria para demandas de Órgãos de Controle | C11: Relatório | D11: CONSULTORIA | E11: 36 | F11: 0.059071 | G11: =F11*$G$15 -> 2556100.44
A12: P2.3 | B12: Assessoria de Comunicação Social | C12: Relatório | D12: CONSULTORIA | E12: 36 | F12: 0.048771 | G12: =F12*$G$15 -> 2110402.31
A13: P2.4 | B13: Assessoria de Tecnologia da Informação | C13: Relatório | D13: CONSULTORIA | E13: 36 | F13: 0.040163 | G13: =F13*$G$15 -> 1737919.83
A14: P2.5 | B14: Gestão de Apoio Administrativo | C14: Relatório | D14: CONSULTORIA | E14: 36 | F14: 0.082947 | G14: =F14*$G$15 -> 3589254.69
A15: TOTAL GERAL | F15: 1 | G15: 43271663.66
A18: Critérios de Pagamento
A19: DESCRIÇÃO DO SERVIÇO | C19: UNID | E19: QUANT | F19: PERCENTUAL S/ PREÇO GLOBAL | G19: VALOR TOTAL
A20: PROJETO
A21: P1 | B21: Assessoramento de Engenharia
A22: P1.1 | B22: Gestão de Planejamento e Projetos | C22: Relatório | D22: CONSULTORIA | E22: 36 | F22: 0.219972
A23: P1.2 | B23: Gestão de Desapropriação, Reassentamento e Meio Ambiente | C23: Relatório | D23: CONSULTORIA | E23: 36 | F23: 0.22867
A24: P1.3 | B24: Gestão de Construção | C24: Relatório | D24: CONSULTORIA | E24: 36 | F24: 0.282679
A25: P2 | B25: Assessoramento Gerencial
A26: P2.1 | B26: Assessoria Orçamentária, Financeira e Contábil | C26: Relatório | D26: CONSULTORIA | E26: 36 | F26: 0.037727
A27: P2.2 | B27: Assessoria para demandas de Órgãos de Controle | C27: Relatório | D27: CONSULTORIA | E27: 36 | F27: 0.059071
A28: P2.3 | B28: Assessoria de Comunicação Social | C28: Relatório | D28: CONSULTORIA | E28: 36 | F28: 0.048771
A29: P2.4 | B29: Assessoria de Tecnologia da Informação | C29: Relatório | D29: CONSULTORIA | E29: 36 | F29: 0.040163
A30: P2.5 | B30: Gestão de Apoio Administrativo | C30: Relatório | D30: CONSULTORIA | E30: 36 | F30: 0.082947
A31: TOTAL GERAL | F31: 1

Sheet Memória de cálculo (hidden)
C1: ='[38]PFS_VII Det_ Enc_ Soc_'!C1 -> Ministério do Desenvolvimento Regional - MDR
C2: Companhia de Desenvolvimento dos Vales do São Francisco e do Parnaíba
B4: MEMÓRIA DE CÁLCULO
B6: ITEM 02: RELATÓRIO TÉCNICO DE FISCALIZAÇÃO
B8: PROFISSIONAIS DO APOIO POR EQUIPE
B9: Profissional | C9: Quantidade | D9: Unidade
B10: Engenheiro | C10: 6 | D10: coordenador
B11: Técnico de campo | C11: 30 | D11: técnico(s)
B13: EQUIPAMENTOS UTILIZADOS POR EQUIPE
B14: Item | C14: Quantidade | D14: Unidade
B15: Veículo | C15: 1 | D15: unidade(s)
B16: Notebook | C16: 1 | D16: unidade(s)
B17: GPS | C17: 1 | D17: unidade(s)
B18: Plano celular | C18: 1 | D18: unidade(s)
B20: APROPRIAÇÃO DO SERVIÇO DE VISTORIA TÉCNICA POR DIA
B21: Do Coordenador
B22: Serviço | C22: Quantidade | D22: Unidade
B23: Relatório | C23: 1.5 | D23: horas
B24: Total | C24: =SUM(C23:C23) -> 1.5 | D24: horas técnicas por vistória
B25: Da equipe de campo
B26: Serviço | C26: Quantidade | D26: Unidade
B27: Vistoria de campo | C27: 5.5 | D27: horas
B28: Deslocamento/Alimentação | C28: 2.5 | D28: horas
B29: Relatório | C29: 2.5 | D29: horas
B30: Total | C30: =SUM(C27:C29) -> 10.5 | D30: horas técnicas por vistória
B32: PRODUTIVIDADE DA EQUIPE POR DIA DE TRABALHO
B33: Item | C33: Quantidade | D33: Unidade
B34: Quantidade de vias vistoriadas por dia pela equipe A2 | C34: 10 | D34: vias
B35: Quantidade de vias vistoriadas por dia pela equipe A1 | C35: 5 | D35: vias
B38: APROPRIAÇÃO DE CADA ITEM POR RELATÓRIO TÉCNICO PRODUZIDO
B39: Item | C39: Quantidade | D39: Unidade
B40: Coordenador | C40: =(C10*C23/C34/176) -> 0.00511 | D40: meses por relatório técnico
B41: Técnico de campo | C41: =(C11*C30/C34/176) -> 0.17898 | D41: meses por relatório técnico
B42: Veículo | C42: =(C15/C34/30) -> 0.00333 | D42: meses por relatório técnico
B43: Notebook | C43: =(C16/C34/30) -> 0.00333 | D43: meses por relatório técnico
B44: GPS | C44: =(C17/C34/30) -> 0.00333 | D44: meses por relatório técnico
B45: Plano celular | C45: =(C18/C34/30) -> 0.00333 | D45: meses por relatório técnico
B46: Diária de campo A1 | C46: =C10/C35 -> 1.2 | D46: diárias por relatório técnico
B47: Diária de campo A2 | C47: =C11/C34 -> 3 | D47: diárias por relatório técnico

Sheet Tabela de veículos (hidden)
A1: MINISTÉRIO DA INTEGRAÇÃO NACIONAL COMPANHIA DE DESENVOLVIMENTO DOS VALES DO SÃO FRANCISCO E DO PARNAÍBA
A2: TABELA DE VEÍCULOS - 3ª/SR/Petrolina - PE
A3: DATA: fevereiro-20
A4: DESCRIÇÃO DO VEÍCULO | B4: CUSTO MENSAL (R$) | D4: CUSTO DIRETO P/KM RODADO (R$) | F4: PREÇO COBRADO PELA EMPRESA (BDI=20,32%) (R$)
B5: S/ MOTORISTA | C5: C/ MOTORISTA | D5: S/ MOTORISTA | E5: C/ MOTORISTA | F5: S/ MOTORISTA | G5: C/ MOTORISTA
A6: MOTOS
A7: (B1) CG 160 CARGO | B7: 1271.24 | C7: 5489.42 | D7: 0.42 | E7: 1.83 | F7: 1529.56 | G7: 6604.88
A8: VEÍCULOS LEVES
A9: (B2) Gol 1.0 T. Flex 12V 5p | B9: 3012.04 | C9: 7230.22 | D9: 1 | E9: 2.41 | F9: 3624.09 | G9: 8699.41
A10: (B3) UNO WAY 1.3 Flex 8V 5p | B10: 3251.84 | C10: 7470.02 | D10: 1.08 | E10: 2.49 | F10: 3912.62 | G10: 8987.93
A11: (B4) Nissan Versa S 1.6 16V FlexStart 4p Mec. | B11: 3437.28 | C11: 7655.46 | D11: 1.15 | E11: 2.55 | F11: 4135.74 | G11: 9211.05
A12: UTILITÁRIOS
A13: (B5) Doblo ESSENCE 1.8 Flex 16V 5p | B13: 4636.02 | C13: 8854.2 | D13: 1.55 | E13: 2.95 | F13: 5578.06 | G13: 10653.37
A14: (B6) Sprinter 415 VAN Standard T.B. 2.2 Dies. | B14: 7150.44 | C14: 11368.62 | D14: 2.38 | E14: 3.79 | F14: 8603.41 | G14: 13678.72
A15: (B7) Microônibus VOLARE FRETAMENTO V8L LONGO (diesel)(E5) | B15: 9931.9 | C15: 14150.08 | D15: 3.31 | E15: 4.72 | F15: 11950.06 | G15: 17025.38
A16: (B8) Ônibus Urbano Marcopolo Viale (45 lug) (218 cv) | B16: 11906.03 | C16: 16124.21 | D16: 3.97 | E16: 5.37 | F16: 14325.33 | G16: 19400.65
A17: PICK-UP
A18: (B9) Saveiro Robust 1.6 Total Flex 8V | B18: 3301.7 | C18: 7519.88 | D18: 1.1 | E18: 2.51 | F18: 3972.61 | G18: 9047.92
A19: (B10) Hilux CS 4x4 2.8 TDI Diesel Mec. | B19: 5893.43 | C19: 10111.61 | D19: 1.96 | E19: 3.37 | F19: 7090.98 | G19: 12166.29
A20: (B11) Hilux CD 4x4 2.8 Diesel Mec. | B20: =#REF! ->  | C20: 10692.44 | D20: 2.16 | E20: 3.56 | F20: 7789.84 | G20: 12865.15
